Workbook

Sheet Grunddata
B1: Grunddata
B2: =IF(B6=0,"",B6) -> Katalog 2025
B5: Tjänst / projekt / förändringsinitiativ
B6: Katalog 2025
B9: Revisionshistorik
B10: Version | C10: Datum | D10: Författare | E10: Kommentar
C11: 2020-09-28 | D11: Amanda Sundberg | E11: Upprättar kalkyl
C12: 2020-10-13 | D12: Amanda Sundberg | E12: Genomför preliminära beräkningar nyttor
C13: 2020-10-14 | D13: Amanda Sundberg | E13: Uppdaterar beräkningar tillsammans med arbetsgruppen
C14: 2020-10-15 | D14: Amanda Sundberg | E14: Reviderar då mer data om nyttor kommit in
C15: 2020-10-19 | D15: Amanda Sundberg | E15: Reviderar med nya kostnadsuppgifter
C16: 2020-10-23 | D16: Amanda Sundberg | E16: Uppgraderar till senaste mallen
B24: Startår
B25: Ange från vilket år periodiserade kostnader och nyttor ska anges.
B27: Parameter | C27: Värde
B28: Startår | C28: 2021
B31: Intressenter
B32: Ange de intressenter som bär nyttor eller kostnader alternativt är involverade i genomförandet. De intressenter som anges här kommer att visas och bli valbara i den här mallens flikar om kostnader och nyttor.
B34: Intressent | C34: Intressentkategori
B35: Regioner | C35: Region
B36: Inera | C36: Inera
B37: Kommuner | C37: Kommun

Sheet Beräkningar nyttor
A1: Beräkningar av nyttor
A4: Minskade kostnader för anpassningar för att hantera felaktig information | B4: Trolig | C4: Källa | D4: Säkerhet | E4: Min | F4: Max | I4: 2021 | J4: 2022 | K4: 2023 | L4: 2024 | M4: 2025 | N4: 2026 | O4: Summa trolig | P4: Summa min | Q4: Summa max
A5: Timpris, snitt för Systemutvecklare kompeteninvå 3 | B5: 751 kr | C5: Kommentus Ramavtal (Stockholm) | D5: Ganska säker | E5: =B5 -> 751 kr | F5: 900 kr | H5: Trolig | K5: =$B$12 -> 227,803 kr | L5: 227,803 kr | M5: 227,803 kr | N5: 227,803 kr | O5: =SUM(I5:N5) -> 911,213 kr | P5: =SUM(I6:N6) -> 911,213 kr | Q5: =SUM(I7:N7) -> 2,184,000 kr
A6: Kostnad för anpassning i tjänsten Formulärhantering (70 timmar) | B6: =70*B5 -> 52,570 kr | C6: Jenny Eltes | D6: Mycket säker | E6: =70*E5 -> 52,570 kr | F6: =70*F5 -> 63,000 kr | H6: Min | K6: =$E$12 -> 227,803 kr | L6: 227,803 kr | M6: 227,803 kr | N6: 227,803 kr
A7: Kostnad för anpassning i tjänsten Stöd och Behandling (200 timmar) | B7: =200*B5 -> 150,200 kr | C7: Åsa Jonsson | D7: Mycket säker | E7: =200*E5 -> 150,200 kr | F7: =200*F5 -> 180,000 kr | H7: Max | K7: =$F$12 -> 546,000 kr | L7: 546,000 kr | M7: 546,000 kr | N7: 546,000 kr
A8: Kostnad för anpassning i Intygsstjänser (200+168+168+104 timmar) | B8: =(200+168+168+104)*B5 -> 480,640 kr | C8: Anna Rajkowska | D8: Mycket säker | E8: =(200+168+168+104)*E5 -> 480,640 kr | F8: =(200+168+168+104)*F5 -> 576,000 kr
A9: Kostnad för anpassning i Person- och Säkerhetstjänsterna (mycket-men ville inte uppskatta, tar snittet) | B9: =AVERAGE(B6:B8) -> 227,803 kr | C9: Niclas Hedlund | D9: Mycket säker | E9: =E10 -> 227,803 kr | F9: =F10 -> 273,000 kr
A10: Kostnad i snitt för att anpassa tjänsten för att hantera fel i HSA | B10: =AVERAGE(B6:B8) -> 227,803 kr | C10: Medelvärde | D10: Mycket säker | E10: =AVERAGE(E6:E8) -> 227,803 kr | F10: =AVERAGE(F6:F8) -> 273,000 kr
A11: Hälften av antalet tjänster som ansluter per år kan undvika anpassningar | B11: 1 | C11: Ineras antagande | D11: Ganska säker | E11: =B11 -> 1 | F11: 2
A12: Minskade kostnader för att hantera felaktig information per år | B12: =B11*B10 -> 227,803 kr | E12: =E11*E10 -> 227,803 kr | F12: =F11*F10 -> 546,000 kr
A14: Minskade kostnader för drift och förvaltning av HSA | B14: Trolig | C14: Källa | D14: Säkerhet | E14: Min | F14: Max | I14: 2021 | J14: 2022 | K14: 2023 | L14: 2024 | M14: 2025 | N14: 2026 | O14: Summa trolig | P14: Summa min | Q14: Summa max
A15: Applikationsförvaltning | H15: Trolig | K15: =$B$39 -> 765,672 kr | L15: =$B$39 -> 765,672 kr | M15: 765,672 kr | N15: 765,672 kr | O15: =SUM(I15:N15) -> 3,062,688 kr | P15: =SUM(I16:N16) -> 2,102,688 kr | Q15: =SUM(I17:N17) -> 8,107,488 kr
A16: Kostnad applikationförvaltning per månad | B16: 253,000 kr | C16: Cybercom | D16: Mycket säker | E16: 253,000 kr | F16: 253,000 kr | H16: Min | K16: =$E$39 -> 525,672 kr | L16: =$E$39 -> 525,672 kr | M16: 525,672 kr | N16: 525,672 kr
A17: Antal timmar applikationsförvaltning per månad | B17: 300 | C17: Cybercom | D17: Mycket säker | E17: 300 | F17: 300 | H17: Max | K17: =$F$39 -> 2,026,872 kr | L17: =$F$39 -> 2,026,872 kr | M17: 2,026,872 kr | N17: 2,026,872 kr
A18: Kostnad idag för applikationsförvaltning, per timme -enl. Cybercom 300 timmar/mån och 253 000/mån | B18: =B16/B17 -> 843 kr | C18: Cybercom | D18: Mycket säker | E18: =E16/E17 -> 843 kr | F18: =F16/F17 -> 843 kr
A19: Årskostnad applikationsförvaltning | B19: =B16*12 -> 3,036,000 kr | C19: Cybercom | D19: Mycket säker | E19: =E16*12 -> 3,036,000 kr | F19: =F16*12 -> 3,036,000 kr
A20: Snittkostnad applikationsförvaltning Inera - timpris, snitt för Systemutvecklare kompeteninvå 3 | B20: 751 kr | C20: Kommentus Ramavtal (Stockholm) | D20: Ganska säker | E20: =B20 -> 751 kr | F20: =B20 -> 751 kr
A21: Antal timmar applikationsförvaltning framöver | B21: 300 | C21: Ineras uppskattning | D21: Ganska säker | E21: 300 | F21: 200
A22: Årskostnad med lägre kompetensnivå | B22: =B21*B20*12 -> 2,703,600 kr | C22: Ineras antagande | D22: Ganska säker | E22: =E21*E20*12 -> 2,703,600 kr | F22: =F21*F20*12 -> 1,802,400 kr
A23: Minskade kostnader för applikationsförvaltning per år | B23: =B19-B22 -> 332,400 kr | E23: =E19-E22 -> 332,400 kr | F23: =F19-F22 -> 1,233,600 kr
A25: Support (Service Agreement)
A26: Supportkostnad per månad i snitt | B26: 50,000 kr | C26: Robban | D26: Ganska säker | E26: 30,000 kr | F26: 80,000 kr
A27: Supportkostnad per år | B27: =B26*12 -> 600,000 kr | C27: Mikael Welander | D27: Ganska säker | E27: =E26*12 -> 360,000 kr | F27: =F26*12 -> 960,000 kr
A28: Supportkostnad i snitt per månad för Ineras övriga tjänster hos Basefarm | B28: 13,894 kr | C28: Mikael Welander | D28: Mycket säker | E28: 13,894 kr | F28: 13,894 kr
A29: Supportkostnad per år för Ineras övriga tjänster hos Basefarm | B29: =B28*12 -> 166,728 kr | C29: Mikael Welander | D29: Mycket säker | E29: =E28*12 -> 166,728 kr | F29: =F28*12 -> 166,728 kr
A30: Minskade kostnader för support per år | B30: =B27-B29 -> 433,272 kr | C30: Ineras antagande | D30: Ganska säker | E30: =E27-E29 -> 193,272 kr | F30: =F27-F29 -> 793,272 kr
A31: Minskade kostnader för support per år | B31: =B30 -> 433,272 kr | E31: =E30 -> 193,272 kr | F31: =F30 -> 793,272 kr
A33: Drift
A34: Hyrd hårdvara kostnad per månad idag | B34: 130,558 kr | C34: Mikael Welander | D34: Mycket säker | E34: 130,558 kr | F34: 130,558 kr
A35: Hyrd hårdvara kostnad per år | B35: =B34*12 -> 1,566,696 kr | C35: Mikael Welander | D35: Mycket säker | E35: =E34*12 -> 1,566,696 kr | F35: =F34*12 -> 1,566,696 kr
A36: Förväntad kostnad för hyrd hårdvara per månad | C36: Kolla förra projektet | D36: Osäker
A37: Förväntad kostnad för hyrd hårdvara per år | C37: Kolla förra projektet | D37: Osäker
A38: Minskade kostnader för drift | B38: 0 kr
A39: Summa minskade kostnader för applikationsförvaltning, support och drift | B39: =B23+B31+B38 -> 765,672 kr | E39: =E23+E31+E38 -> 525,672 kr | F39: =F23+F31+F38 -> 2,026,872 kr
A41: Minskade kostnader genom gemensam terminologi - Inera | B41: Trolig | C41: Källa | D41: Säkerhet | E41: Min | F41: Max | I41: 2021 | J41: 2022 | K41: 2023 | L41: 2024 | M41: 2025 | N41: 2026 | O41: Summa trolig | P41: Summa min | Q41: Summa max
A42: Antal medarbetare på Inera | B42: 300 | C42: Inera | D42: Mycket säker | E42: 300 kr | F42: 300 kr | H42: Trolig | L42: =$B$47 -> 149,100 kr | M42: 149,100 kr | N42: 149,100 kr | O42: =SUM(I42:N42) -> 447,300 kr | P42: =SUM(I43:N43) -> 447,300 kr | Q42: =SUM(I44:N44) -> 447,300 kr
A43: Antal timmar arbetstiden minskar med per år | B43: 1 | C43: Scanias beräkningar | D43: Ganska säker | E43: 1 kr | F43: 1 kr | H43: Min | L43: =$E$47 -> 149,100 kr | M43: 149,100 kr | N43: 149,100 kr
A44: Frigjord arbetstid per år (timmar) | B44: =B43*B42 -> 300 | C44: Scanias beräkningar | D44: Ganska säker | E44: =E43*E42 -> 300 kr | F44: =F43*F42 -> 300 kr | H44: Max | L44: =$F$47 -> 149,100 kr | M44: 149,100 kr | N44: 149,100 kr
A45: Frigjord arbetstid omräknad i heltidstjänster | B45: =B44/2016 -> 0.15 | C45: Scanias beräkningar | D45: Ganska säker | E45: =E44/2016 -> 0 kr | F45: =F44/2016 -> 0 kr
A46: Värdering frigjord tid per timme - vi antar att varje insparad timme kan användas för att minska köpet av konsulttimmar, systemutvecklare KN 1, 497 kr/timme | B46: 497 kr | C46: Ineras värdering | D46: Ganska säker | E46: 497 kr | F46: 497 kr
A47: Minskade kostnader per år | B47: =B46*B44 -> 149,100 kr | E47: =E46*E44 -> 149,100 kr | F47: =F46*F44 -> 149,100 kr
A51: Minskade kostnader genom gemensam terminologi - Regioner | B51: Trolig | C51: Källa | D51: Säkerhet | E51: Min | F51: Max | I51: 2021 | J51: 2022 | K51: 2023 | L51: 2024 | M51: 2025 | N51: 2026 | O51: Summa trolig | P51: Summa min | Q51: Summa max
A52: Antal anställda i regioner (handläggare, administratörer, administratörer vård) | B52: =15000+8000+13000 -> 36,000 | C52: SKR | D52: Mycket säker | E52: =15000+8000+13000 -> 36,000 | F52: =15000+8000+13000 -> 36,000 | H52: Trolig | L52: =$B$57 -> 10,656,000 kr | M52: 10,656,000 kr | N52: 10,656,000 kr | O52: =SUM(I52:N52) -> 31,968,000 kr | P52: =SUM(I53:N53) -> 31,968,000 kr | Q52: =SUM(I54:N54) -> 31,968,000 kr
A53: Antal timmar arbetstiden minskar med per år | B53: 1 | C53: Scanias beräkningar | D53: Ganska säker | E53: 1 | F53: 1 | H53: Min | L53: =$E$57 -> 10,656,000 kr | M53: 10,656,000 kr | N53: 10,656,000 kr
A54: Frigjord arbetstid per år (timmar) | B54: =B53*B52 -> 36,000 | C54: Scanias beräkningar | D54: Ganska säker | E54: =E53*E52 -> 36,000 | F54: =F53*F52 -> 36,000 | H54: Max | L54: =$F$57 -> 10,656,000 kr | M54: 10,656,000 kr | N54: 10,656,000 kr
A55: Frigjord arbetstid omräknad i heltidstjänster | B55: =B54/2016 -> 18 | C55: Scanias beräkningar | D55: Ganska säker | E55: =E54/2016 -> 18 | F55: =F54/2016 -> 18
A56: Värdering av frigjord tid per timme - antagande att den frigjorda tiden används för att minskad stress och därmed sjukskrivningar (den kan exempelvis användas för att ge en friskvårdstimme per administrationsanställd i regionerna). Antagande att varje insparad timme kan minska sjukskrivningarna med en timme per anställd - 296 kr (källa Försäkringskassan) | B56: 296 kr | C56: Ineras värdering, med underlag från Försäkringskassan | D56: Ganska säker | E56: 296 kr | F56: 296 kr
A57: Minskade kostnader per år | B57: =B56*B54 -> 10,656,000 kr | E57: =E56*E54 -> 10,656,000 kr | F57: =F56*F54 -> 10,656,000 kr
A61: Minskade kostnader för drift och förvaltning av fristående kataloger | B61: Trolig | C61: Källa | D61: Säkerhet | E61: Min | F61: Max | I61: 2021 | J61: 2022 | K61: 2023 | L61: 2024 | M61: 2025 | N61: 2026 | O61: Summa trolig | P61: Summa min | Q61: Summa max
A62: Applikationsförvaltning Hitta och jämför vård per år (2021) | B62: 5,490,000 kr | C62: Gustaf Rosander | D62: Mycket säker | E62: 5,490,000 kr | F62: 5,490,000 kr | H62: Trolig | K62: =$B$66 -> 5,576,000 kr | L62: =$B$66 -> 5,576,000 kr | M62: =$B$66 -> 5,576,000 kr | N62: =$B$66 -> 5,576,000 kr | O62: =SUM(I62:N62) -> 22,304,000 kr | P62: =SUM(I63:N63) -> 22,304,000 kr | Q62: =SUM(I64:N64) -> 27,304,000 kr
A63: Drift Hitta och jämför vård och KKA per år | B63: 1,162,000 kr | C63: Gustaf Rosander | D63: Mycket säker | E63: 1,162,000 kr | F63: 1,162,000 kr | H63: Min | K63: =$E$66 -> 5,576,000 kr | L63: =$E$66 -> 5,576,000 kr | M63: =$E$66 -> 5,576,000 kr | N63: =$E$66 -> 5,576,000 kr
A64: Förvaltningskostnader RGS (enl RGS-utredningens alternativ 3, katalog antas vara 25%) | B64: 4,500,000 kr | C64: Elisabeth Kvilen Eriksson, Marie Frosteman | D64: Osäker | E64: 4,500,000 kr | F64: 7,000,000 kr | H64: Max | K64: =$F$66 -> 6,826,000 kr | L64: =$F$66 -> 6,826,000 kr | M64: =$F$66 -> 6,826,000 kr | N64: =$F$66 -> 6,826,000 kr
A65: Förväntade kostnader för drift och förvaltning för HJV och RGS med ny plattform (förväntas halveras jmf med idag) | B65: =SUM(B62:B64)/2 -> 5,576,000 kr | C65: Ineras antagande | D65: Ganska säker | E65: =SUM(E62:E64)/2 -> 5,576,000 kr | F65: =SUM(F62:F64)/2 -> 6,826,000 kr
A66: Minskade kostnader per år | B66: =SUM(B62:B64)-B65 -> 5,576,000 kr | E66: =SUM(E62:E64)-E65 -> 5,576,000 kr | F66: =SUM(F62:F64)-F65 -> 6,826,000 kr
B68: =SUM(B62:B64) -> 11,152,000 kr
A72: Kommande nationella tjänster behöver inte utveckla egna kataloger | B72: Trolig | C72: Källa | D72: Säkerhet | E72: Min | F72: Max | I72: 2021 | J72: 2022 | K72: 2023 | L72: 2024 | M72: 2025 | N72: 2026 | O72: Summa trolig | P72: Summa min | Q72: Summa max
A73: SDK kostnader utveckling av adressbok (25 % av SDKs totala kostnader) | B73: 9,000,000 kr | C73: Arvid Thunholm | D73: Mycket säker | E73: 9,000,000 kr | F73: 9,000,000 kr
A74: Kostnad om kommande tjänster nyttjar ny plattform (förväntas halveras) | B74: =0.5*(B73) -> 4,500,000 kr | C74: Ineras antagande | D74: Ganska säker | E74: =0.75*(E73) -> 6,750,000 kr | F74: =0.25*(F73) -> 2,250,000 kr | H74: Trolig | L74: =$B$77/3 -> 7,500,000 kr | M74: =$B$77/3 -> 7,500,000 kr | N74: =$B$77/3 -> 7,500,000 kr | O74: =SUM(I74:N74) -> 22,500,000 kr | P74: =SUM(I75:N75) -> 11,250,000 kr | Q74: =SUM(I76:N76) -> 33,750,000 kr
A75: Kostnader som unviks per tjänst som nyttjar ny plattform | B75: =B73-B74 -> 4,500,000 kr | C75: Ineras antagande | D75: Ganska säker | E75: =E73-E74 -> 2,250,000 kr | F75: =F73-F74 -> 6,750,000 kr | H75: Min | L75: =$E$77/3 -> 3,750,000 kr | M75: =$E$77/3 -> 3,750,000 kr | N75: =$E$77/3 -> 3,750,000 kr
A76: Antal nya tjänster som kommer ha grunddata och katalog inom 5 år | B76: 5 | C76: Ineras antagande | D76: Ganska säker | E76: 5 | F76: 5 | H76: Max | L76: =$F$77/3 -> 11,250,000 kr | M76: =$F$77/3 -> 11,250,000 kr | N76: =$F$77/3 -> 11,250,000 kr
A77: Minskade kostnader inom 5 år | B77: =B76*B75 -> 22,500,000 kr | E77: =E76*E75 -> 11,250,000 kr | F77: =F76*F75 -> 33,750,000 kr
B79: =B76*B73 -> 45000000
B80: =B76*B75 -> 22500000
B81: =B79-B80 -> 22500000
A84: Kommande nationella tjänster behöver inte förvalta egna kataloger | B84: Trolig | C84: Källa | D84: Säkerhet | E84: Min | F84: Max | I84: 2021 | J84: 2022 | K84: 2023 | L84: 2024 | M84: 2025 | N84: 2026 | O84: Summa trolig | P84: Summa min | Q84: Summa max
A85: SDK kostnader förvaltning av adressbok (25 % av SDKs totala kostnader) | B85: 2,500,000 kr | C85: Arvid Thunholm | D85: Mycket säker | E85: 2,500,000 kr | F85: 2,500,000 kr | H85: Trolig | M85: =$B$89/2 -> 3,125,000 kr | N85: =$B$89/2 -> 3,125,000 kr | O85: =SUM(I85:N85) -> 6,250,000 kr | P85: =SUM(I86:N86) -> 3,125,000 kr | Q85: =SUM(I87:N87) -> 9,375,000 kr
A86: Kostnad om kommande tjänster nyttjar ny plattform (förväntas halveras) | B86: =B85/2 -> 1,250,000 kr | C86: Ineras antagande | D86: Ganska säker | E86: =0.75*E85 -> 1,875,000 kr | F86: =0.25*F85 -> 625,000 kr | H86: Min | M86: =$E$89/2 -> 1,562,500 kr | N86: =$E$89/2 -> 1,562,500 kr
A87: Kostnader som unviks per tjänst som nyttjar ny plattform | B87: =B85-B86 -> 1,250,000 kr | C87: Ineras antagande | D87: Ganska säker | E87: =E85-E86 -> 625,000 kr | F87: =F85-F86 -> 1,875,000 kr | H87: Max | M87: =$F$89/2 -> 4,687,500 kr | N87: =$F$89/2 -> 4,687,500 kr
A88: Antal nya tjänster som kommer ha grunddata och katalog inom 5 år | B88: 5 | C88: Ineras antagande | D88: Ganska säker | E88: 5 kr | F88: 5 kr
A89: Minskade kostnader inom 5 år | B89: =B88*B87 -> 6,250,000 kr | E89: =E88*E87 -> 3,125,000 kr | F89: =F88*F87 -> 9,375,000 kr
A97: Kommande konsumenter behöver inte utveckla anslutningar till andra informationsmängder | B97: Trolig | C97: Källa | D97: Säkerhet | E97: Min | F97: Max | I97: 2021 | J97: 2022 | K97: 2023 | L97: 2024 | M97: 2025 | N97: 2026 | O97: Summa trolig | P97: Summa min | Q97: Summa max
A98: Kostnad för att utveckla anslutningar till andra informationsmängder | B98: 1,000,000 kr | C98: Sara Meunier / Cosmic Kundgrupp | D98: Ganska säker | E98: 750,000 kr | F98: 1,000,000 kr | H98: Trolig | K98: =B100 -> 1,000,000 kr | L98: =B100 -> 1,000,000 kr | M98: =B100 -> 1,000,000 kr | N98: =B100 -> 1,000,000 kr | O98: =SUM(I98:N98) -> 4,000,000 kr | P98: =SUM(I99:N99) -> 3,000,000 kr | Q98: =SUM(I100:N100) -> 4,000,000 kr
A99: Kommande konsumenter som kan undvika kostnaden, per år | B99: 1 | C99: Ineras antagande | D99: Ganska säker | E99: 1 kr | F99: 1 kr | H99: Min | K99: =$E$100 -> 750,000 kr | L99: =$E$100 -> 750,000 kr | M99: =$E$100 -> 750,000 kr | N99: =$E$100 -> 750,000 kr
A100: Minskade kostnader per år | B100: =B99*B98 -> 1,000,000 kr | E100: =E99*E98 -> 750,000 kr | F100: =F99*F98 -> 1,000,000 kr | H100: Max | K100: =$F$100 -> 1,000,000 kr | L100: =$F$100 -> 1,000,000 kr | M100: =$F$100 -> 1,000,000 kr | N100: =$F$100 -> 1,000,000 kr
A108: Minskade utvecklingskostnader för Ineras befintliga tjänster | B108: Trolig | C108: Källa | D108: Säkerhet | E108: Min | F108: Max | I108: 2021 | J108: 2022 | K108: 2023 | L108: 2024 | M108: 2025 | N108: 2026 | O108: Summa trolig | P108: Summa min | Q108: Summa max
A109: Kostnad för att utveckla en ny funktion för enskilda tjänster | B109: 1,000,000 kr | C109: Ineras uppskattning | D109: Ganska säker | E109: 1,000,000 kr | F109: 1,000,000 kr | H109: Trolig | K109: =$B$114/4 -> 2,000,000 kr | L109: =$B$114/4 -> 2,000,000 kr | M109: 2,000,000 kr | N109: 2,000,000 kr | O109: =SUM(I109:N109) -> 8,000,000 kr | P109: =SUM(I110:N110) -> 6,000,000 kr | Q109: =SUM(I111:N111) -> 9,000,000 kr
A110: Kostnad för att utveckla om tjänsterna kunde nyttja ny teknisk plattform | B110: 200,000 kr | C110: Ineras uppskattning | D110: Ganska säker | E110: 400,000 kr | F110: 100,000 kr | H110: Min | K110: =$E$114/4 -> 1,500,000 kr | L110: =$E$114/4 -> 1,500,000 kr | M110: 1,500,000 kr | N110: 1,500,000 kr
A111: Kostnad som undviks per nyutvecklad funktion | B111: =B109-B110 -> 800,000 kr | C111: Ineras uppskattning | D111: Ganska säker | E111: =E109-E110 -> 600,000 kr | F111: =F109-F110 -> 900,000 kr | H111: Max | K111: =$F$114/4 -> 2,250,000 kr | L111: =$F$114/4 -> 2,250,000 kr | M111: 2,250,000 kr | N111: 2,250,000 kr
A112: Antal tjänster som utvecklar nya funktioner inom 5 år | B112: 5 | C112: Ineras uppskattning | D112: Ganska säker | E112: 5 | F112: 5
A113: Antal funktioner som varje tjänst utvecklar | B113: 2 | C113: Ineras uppskattning | D113: Ganska säker | E113: 2 | F113: 2
A114: Minskade kostnader under fem år | B114: =B113*B112*B111 -> 8,000,000 kr | E114: =E113*E112*E111 -> 6,000,000 kr | F114: =F113*F112*F111 -> 9,000,000 kr
A120: Minskad tid på administration för producenter av information (genom bättre admingränssnitt) | B120: Trolig | C120: Källa | D120: Säkerhet | E120: Min | F120: Max | I120: 2021 | J120: 2022 | K120: 2023 | L120: 2024 | M120: 2025 | N120: 2026 | O120: Summa trolig | P120: Summa min | Q120: Summa max
A121: Antal administratörer i nationella HSA idag | B121: 2,236 | C121: HSA | D121: Mycket säker | E121: 2,236 | F121: 2,236 | H121: Trolig | K121: =$B$132 -> 15,816,346 kr | L121: =$B$132 -> 15,816,346 kr | M121: =$B$132 -> 15,816,346 kr | N121: =$B$132 -> 15,816,346 kr | O121: =SUM(I121:N121) -> 63,265,384 kr | P121: =SUM(I122:N122) -> 21,018,400 kr | Q121: =SUM(I123:N123) -> 63,265,384 kr
A122: Timmar de lägger på administration i veckan i snitt | B122: 2 | C122: Ineras uppskattning | D122: Ganska säker | E122: 2 | F122: 2 | H122: Min | K122: =$E$132 -> 5,254,600 kr | L122: =$E$132 -> 5,254,600 kr | M122: =$E$132 -> 5,254,600 kr | N122: =$E$132 -> 5,254,600 kr
A123: Minskning av tiden som nytt administrationsgränssnitt medför | B123: 0.25 | C123: Ineras uppskattning | D123: Ganska säker | E123: 0 | F123: 0 | H123: Max | K123: =$F$132 -> 15,816,346 kr | L123: =$F$132 -> 15,816,346 kr | M123: =$F$132 -> 15,816,346 kr | N123: =$F$132 -> 15,816,346 kr
A124: Sparad tid per vecka (minuter) | B124: 30 | C124: Ineras uppskattning | D124: Ganska säker | E124: 30 | F124: 30
A125: Antal arbetsveckor per år (exklusive semester 5 veckor) | B125: 47 | C125: Ineras uppskattning | D125: Mycket säker | E125: 47 | F125: 47
A126: Sparad tid per år (minuter) | B126: =B125*B124 -> 1,410 | C126: Ineras uppskattning | D126: Ganska säker | E126: =E125*E124 -> 1,410 | F126: =F125*F124 -> 1,410
A127: Sparad tid per år (timmar) | B127: =B126/60 -> 24 | C127: Ineras uppskattning | D127: Ganska säker | E127: =E126/60 -> 24 | F127: =F126/60 -> 24
A128: Sparad tid för alla administratörer sammanlagt per år (timmar) | B128: =B127*B121 -> 52,546 | C128: Ineras uppskattning | D128: Ganska säker | E128: =E127*E121 -> 52,546 | F128: =F127*F121 -> 52,546
A129: Antal heltidstjänster per år | B129: =B128/2016 -> 26 | C129: Ineras uppskattning | D129: Ganska säker | E129: =E128/2016 -> 26 | F129: =F128/2016 -> 26
A130: Värdering av frigjord tid per timme - antagande att regionen kan minska timmar från timanställda med lika många timmar som frigörs från katalogen, timpris värderas till 301 kr (baserad på ssk-lön inkl arbetsgivaravgifter) | B130: 301 kr | C130: Ineras värdering | D130: Osäker | E130: 100 kr | F130: 301 kr
A131: Värdet av frigjord arbetstid per år | B131: =B130*B128 -> 15,816,346 kr | C131: Ineras uppskattning | D131: Osäker | E131: =E130*E128 -> 5,254,600 kr | F131: =F130*F128 -> 15,816,346 kr
A132: Minskade kostnader per år | B132: =B131 -> 15,816,346 kr | E132: =E131 -> 5,254,600 kr | F132: =F131 -> 15,816,346 kr
A134: Kommuner undviker kostnader för utveckling av separata kataloger i olika tjänster | B134: Trolig | C134: Källa | D134: Säkerhet | E134: Min | F134: Max | I134: 2021 | J134: 2022 | K134: 2023 | L134: 2024 | M134: 2025 | N134: 2026 | O134: Summa trolig | P134: Summa min | Q134: Summa max
A135: Kostnad att utveckla en nationell katalog | B135: 9,000,000 kr | C135: Arvid Thunholm | D135: Mycket säker | E135: 9,000,000 kr | F135: 9,000,000 kr | H135: Trolig | L135: =$B$140/3 -> 27,000,000 kr | M135: =$B$140/3 -> 27,000,000 kr | N135: 27,000,000 kr | O135: =SUM(I135:N135) -> 81,000,000 kr | P135: =SUM(I136:N136) -> 20,250,000 kr | Q135: =SUM(I137:N137) -> 202,500,000 kr
A136: Uppskattad kostnad för att etablera en lokal katalog (ca hälftena av en nationell) | B136: 4,500,000 kr | C136: Ineras uppskattning | D136: Ganska säker | E136: 4,500,000 kr | F136: 4,500,000 kr | H136: Min | L136: =$E$140/3 -> 6,750,000 kr | M136: =$E$140/3 -> 6,750,000 kr | N136: 6,750,000 kr
A137: Antal kommuner som förväntas utveckla en lokal katalog för en tjänst om ny plattform inte genomförs | B137: 20 | C137: Ineras antagande | D137: Ganska säker | E137: 5 | F137: 50 | H137: Max | L137: =$F$140/3 -> 67,500,000 kr | M137: =$F$140/3 -> 67,500,000 kr | N137: 67,500,000 kr
A138: Kostnad för kommunerna om de utvecklar tjänsten och katalogen var och en för sig | B138: =B137*B136 -> 90,000,000 kr | C138: Ineras antagande | D138: Ganska säker | E138: =E137*E136 -> 22,500,000 kr | F138: =F137*F136 -> 225,000,000 kr
A139: Kostnad för kommunerna om de utvecklar med ny plattform (10 % av vad de skulle lägga annars) | B139: =0.1*B138 -> 9,000,000 kr | C139: Ineras antagande | D139: Ganska säker | E139: =0.1*E138 -> 2,250,000 kr | F139: =0.1*F138 -> 22,500,000 kr
A140: Minskade kostnader under 5 år | B140: =B138-B139 -> 81,000,000 kr | E140: =E138-E139 -> 20,250,000 kr | F140: =F138-F139 -> 202,500,000 kr
A147: Minskade skadestånd eller viten enligt GDPR | B147: Trolig | C147: Källa | D147: Säkerhet | E147: Min | F147: Max | I147: 2021 | J147: 2022 | K147: 2023 | L147: 2024 | M147: 2025 | N147: 2026 | O147: Summa trolig | P147: Summa min | Q147: Summa max
A148: Vite för vanliga förseelser mot GDPR för företag - 10 000 000 EUR eller 2 % av årsomsättning | B148: 100,000,000 kr | C148: Manólis Nymark | D148: Mycket säker | E148: 100,000,000 kr | F148: 100,000,000 kr | H148: Trolig | L148: 200,000 kr | O148: =SUM(I148:N148) -> 200,000 kr | P148: =SUM(I149:N149) -> 0 | Q148: =SUM(I150:N150) -> 10,000,000 kr
A149: Vite för grövre överträderlse mot GDPR för företag - 20 000 000 EUR eller 4 % av årsomsättning | B149: 210,000,000 kr | C149: Manólis Nymark | D149: Mycket säker | E149: 210,000,000 kr | F149: 210,000,000 kr | H149: Min | L149: =E152 -> 0
A150: Vite som kan påföras myndigheter - max | B150: 10,000,000 kr | C150: Datainspektionen | D150: Mycket säker | E150: 10,000,000 kr | F150: 10,000,000 kr | H150: Max | L150: =F152 -> 10,000,000 kr
A151: Vite som utfärdats i Sverige hittills (skola i Skellefteå 2019) | B151: 200,000 kr | C151: Computer Sweden | D151: Mycket säker | E151: 200,000 kr | F151: 200,000 kr
A152: Vite som vi tror någon kund skulle undvika inom 6 år | B152: =B151 -> 200,000 kr | E152: 0 kr | F152: =F150 -> 10,000,000 kr
A159: Minskad tid på administration för producenter i Hitta och jämför vård | C159: Källa | D159: Säkerhet | E159: Min | F159: Max | I159: 2021 | J159: 2022 | K159: 2023 | L159: 2024 | M159: 2025 | N159: 2026 | O159: Summa trolig | P159: Summa min | Q159: Summa max
A160: Tid för att administera i KKA per vecka och region | B160: 2 | C160: Helena Olsson | D160: Ganska säker | E160: 2 | F160: 2 | H160: Trolig | K160: =$B$166 -> 242,424 kr | L160: =$B$166 -> 242,424 kr | M160: =$B$166 -> 242,424 kr | N160: =$B$166 -> 242,424 kr | O160: =SUM(I160:N160) -> 969,696 kr | P160: =SUM(I161:N161) -> 327,600 kr | Q160: =SUM(I162:N162) -> 969,696 kr
A161: Timmar per vecka i KKA för alla regioner | B161: =B160*21 -> 32 | C161: Helena Olsson | D161: Ganska säker | E161: =E160*21 -> 32 | F161: =F160*21 -> 32 | H161: Min | K161: =$E$166 -> 81,900 kr | L161: =$E$166 -> 81,900 kr | M161: =$E$166 -> 81,900 kr | N161: =$E$166 -> 81,900 kr
A162: Timmar per år i KKA för alla regioner | B162: =B161*52 -> 1,638 | C162: Helena Olsson | D162: Ganska säker | E162: =E161*52 -> 1,638 | F162: =F161*52 -> 1,638 | H162: Max | K162: =$F$166 -> 242,424 kr | L162: =$F$166 -> 242,424 kr | M162: =$F$166 -> 242,424 kr | N162: =$F$166 -> 242,424 kr
A163: Timmar som förväntas undvikas om HJV nyttjar ny plattform (hälften av dagens timmar) | B163: =B162/2 -> 819 | C163: Ineras antagande | D163: Ganska säker | E163: =E162/2 -> 819 | F163: =F162/2 -> 819
A164: Heltidstjänster som förväntas undvikas om HJV nyttjar ny plattform | B164: =B163/2016 -> 0.4 | C164: Ineras antagande | D164: Ganska säker | E164: =E162/2016 -> 0.8 | F164: =F162/2016 -> 0.8
A165: Värdering av frigjord tid per timme - antagande att den frigjorda tiden används för att minskad stress och därmed sjukskrivningar (den kan exempelvis användas för att ge en friskvårdstimme per administrationsanställd i regionerna). Antagande att varje insparad timme kan minska kostnaderna för sjukskrivningar med en timme (värdering Försäkringskassan). | B165: 296 kr | C165: Ineras värdering | D165: Ganska säker | E165: 100 kr | F165: 296 kr
A166: Minskade kostnader per år | B166: =B165*B163 -> 242,424 kr | E166: =E165*E163 -> 81,900 kr | F166: =F165*F163 -> 242,424 kr
A174: Minskad tid på administration för producenter i RGS Katalog | C174: Källa | D174: Säkerhet | E174: Min | F174: Max | I174: 2021 | J174: 2022 | K174: 2023 | L174: 2024 | M174: 2025 | N174: 2026 | O174: Summa trolig | P174: Summa min | Q174: Summa max
A175: Tid för att administrera i RGS katalog per år och region - ca 8 timmar /vecka | B175: =8*52 -> 416 | C175: Eva-Marie Söberg | D175: Ganska säker | E175: =8*52 -> 416 kr | F175: =8*52 -> 416 kr | H175: Trolig | K175: =$B$179 -> 2,629,536 kr | L175: =$B$179 -> 2,629,536 kr | M175: 2,629,536 kr | N175: 2,629,536 kr | O175: =SUM(I175:N175) -> 10,518,144 kr | P175: =SUM(I176:N176) -> 8,414,515 kr | Q175: =SUM(I177:N177) -> 12,621,773 kr
A176: Timmar per år i RGS katalog för alla regioner | B176: =B175*21 -> 8,736 | C176: Eva-Marie Söberg | D176: Ganska säker | E176: =E175*21 -> 8,736 kr | F176: =F175*21 -> 8,736 kr | H176: Min | K176: =$E$179 -> 2,103,629 kr | L176: =$E$179 -> 2,103,629 kr | M176: 2,103,629 kr | N176: 2,103,629 kr
A177: Antal heltidstjänster i RGS katalog per år | B177: =B176/2016 -> 4.3 | C177: Eva-Marie Söberg | D177: Ganska säker | E177: =E176/2016 -> 4 kr | F177: =F176/2016 -> 4 kr | H177: Max | K177: =$F$179 -> 3,155,443 kr | L177: =$F$179 -> 3,155,443 kr | M177: 3,155,443 kr | N177: 3,155,443 kr
A178: Värdering av frigjord tid per timme - antagande att regionen kan minska timmar från timanställda med lika många timmar som frigörs från katalogen, timpris baseras på sjuksköterskelön inkl arbetsgivaravgifter och värderas till 310 kr. | B178: 301 kr | C178: Ineras värdering | D178: Ganska säker | E178: =B178*(0.8) -> 241 kr | F178: =B178*1.2 -> 361 kr
A179: Minskade kostnader per år | B179: =B178*B176 -> 2,629,536 kr | E179: =E178*E176 -> 2,103,629 kr | F179: =F178*F176 -> 3,155,443 kr

Sheet Nyttor
B1: Nyttor
B2: =IF(Grunddata!B6=0,"",Grunddata!B6) -> Katalog 2025
C4: Välj finansiell nytta, en omfördelningsnytta, eller kvalitativ, mätbar. | D4: Ange ett kortfattat men beskrivande namn på nyttan, exempelvis "minskad restid", "reducerad personalkostnad", "reducerade kvalitetsbristkostnader," "ökade intäkter," etc. | E4: Ange för vilken intressent nyttan uppstår. Faller nyttan hos flera aktörer får detta anges i en ny rad per intressent | F4: För finansiella nyttor och omfördelningsnyttor, ange det uppskattade värdet per år under realiseringsperioden. Observera att nyttor som kategoriserats som kvalitetsnyttor inte värderas här. | M4: Om möjligt estimera ett min- och ett max värde.
F5: =Startår -> 2021 | G5: =F5+1 -> 2022 | H5: =G5+1 -> 2023 | I5: 2024 | J5: 2025 | K5: 2026
B6: ID | C6: Nyttokategori | D6: Nyttans namn | E6: Intressent | F6: år 1 | G6: år 2 | H6: år 3 | I6: år 4 | J6: år 5 | K6: år 6 | L6: Summa | M6: Min | N6: Max | O6: Vägt medel | P6: Osäkerhet | Q6: Andel av nyttan | R6: Kolumn1 | S6: Kolumn2
B7: 11 | C7: 1. Finansiell | D7: ='Beräkningar nyttor'!A134 -> Kommuner undviker kostnader för utveckling av separata kataloger i olika tjänster | E7: Kommuner | F7: ='Beräkningar nyttor'!I135 -> 0 | G7: ='Beräkningar nyttor'!J135 -> 0 | H7: ='Beräkningar nyttor'!K135 -> 0 | I7: ='Beräkningar nyttor'!L135 -> 27,000,000 | J7: ='Beräkningar nyttor'!M135 -> 27,000,000 | K7: ='Beräkningar nyttor'!N135 -> 27,000,000 | L7: =SUM(F7:K7) -> 81,000,000 | M7: ='Beräkningar nyttor'!P135 -> 20,250,000 | N7: ='Beräkningar nyttor'!Q135 -> 202,500,000 | O7: =IF(OR(ISBLANK(N7),ISBLANK(M7),ISBLANK(L7)),"",(N7+M7+3*L7)/5) -> 93,150,000 | P7: =IF(OR(ISBLANK(L7),L7=0),"",(N7-M7)/5/L7) -> 45% | Q7: =Tabell10[[#This Row],[Summa]]/SUM(L7:L15) -> 55% | R7: =Tabell10[[#This Row],[Summa]]/6 -> 13,500,000
B8: 6 | C8: 1. Finansiell | D8: ='Beräkningar nyttor'!A72 -> Kommande nationella tjänster behöver inte utveckla egna kataloger | E8: Inera | F8: ='Beräkningar nyttor'!I74 -> 0 | G8: ='Beräkningar nyttor'!J74 -> 0 | H8: ='Beräkningar nyttor'!K74 -> 0 | I8: ='Beräkningar nyttor'!L74 -> 7,500,000 | J8: ='Beräkningar nyttor'!M74 -> 7,500,000 | K8: ='Beräkningar nyttor'!N74 -> 7,500,000 | L8: 22,500,000 | M8: ='Beräkningar nyttor'!P74 -> 11,250,000 | N8: ='Beräkningar nyttor'!Q74 -> 33,750,000 | O8: 22,500,000 | P8: 20% | Q8: =Tabell10[[#This Row],[Summa]]/SUM(L7:L15) -> 15% | R8: =Tabell10[[#This Row],[Summa]]/6 -> 3,750,000
B9: 5 | C9: 1. Finansiell | D9: ='Beräkningar nyttor'!A61 -> Minskade kostnader för drift och förvaltning av fristående kataloger | E9: Inera | F9: ='Beräkningar nyttor'!I62 -> 0 | G9: ='Beräkningar nyttor'!J62 -> 0 | H9: ='Beräkningar nyttor'!K62 -> 5,576,000 | I9: ='Beräkningar nyttor'!L62 -> 5,576,000 | J9: ='Beräkningar nyttor'!M62 -> 5,576,000 | K9: ='Beräkningar nyttor'!N62 -> 5,576,000 | L9: 22,304,000 | M9: ='Beräkningar nyttor'!P62 -> 22,304,000 | N9: ='Beräkningar nyttor'!Q62 -> 27,304,000 | O9: 23,304,000 | P9: 4% | Q9: =Tabell10[[#This Row],[Summa]]/SUM(L7:L15) -> 15% | R9: =Tabell10[[#This Row],[Summa]]/6 -> 3,717,333
B10: 9 | C10: 1. Finansiell | D10: ='Beräkningar nyttor'!A108 -> Minskade utvecklingskostnader för Ineras befintliga tjänster | E10: Inera | F10: ='Beräkningar nyttor'!I109 -> 0 | G10: ='Beräkningar nyttor'!J109 -> 0 | H10: ='Beräkningar nyttor'!K109 -> 2,000,000 | I10: ='Beräkningar nyttor'!L109 -> 2,000,000 | J10: ='Beräkningar nyttor'!M109 -> 2,000,000 | K10: ='Beräkningar nyttor'!N109 -> 2,000,000 | L10: 8,000,000 | M10: ='Beräkningar nyttor'!P109 -> 6,000,000 | N10: ='Beräkningar nyttor'!Q109 -> 9,000,000 | O10: 7,800,000 | P10: 8% | Q10: =Tabell10[[#This Row],[Summa]]/SUM(L7:L15) -> 5% | R10: =Tabell10[[#This Row],[Summa]]/6 -> 1,333,333
B11: 7 | C11: 1. Finansiell | D11: ='Beräkningar nyttor'!A84 -> Kommande nationella tjänster behöver inte förvalta egna kataloger | E11: Inera | F11: ='Beräkningar nyttor'!I85 -> 0 | G11: ='Beräkningar nyttor'!J85 -> 0 | H11: ='Beräkningar nyttor'!K85 -> 0 | I11: ='Beräkningar nyttor'!L85 -> 0 | J11: ='Beräkningar nyttor'!M85 -> 3,125,000 | K11: ='Beräkningar nyttor'!N85 -> 3,125,000 | L11: 6,250,000 | M11: ='Beräkningar nyttor'!P85 -> 3,125,000 | N11: ='Beräkningar nyttor'!Q85 -> 9,375,000 | O11: 6,250,000 | P11: 20% | Q11: =Tabell10[[#This Row],[Summa]]/SUM(L7:L15) -> 4% | R11: =Tabell10[[#This Row],[Summa]]/6 -> 1,041,667
B12: 8 | C12: 1. Finansiell | D12: ='Beräkningar nyttor'!A97 -> Kommande konsumenter behöver inte utveckla anslutningar till andra informationsmängder | E12: Inera | F12: ='Beräkningar nyttor'!I98 -> 0 | G12: ='Beräkningar nyttor'!J98 -> 0 | H12: ='Beräkningar nyttor'!K98 -> 1,000,000 | I12: ='Beräkningar nyttor'!L98 -> 1,000,000 | J12: ='Beräkningar nyttor'!M98 -> 1,000,000 | K12: ='Beräkningar nyttor'!N98 -> 1,000,000 | L12: 4,000,000 | M12: ='Beräkningar nyttor'!P98 -> 3,000,000 | N12: ='Beräkningar nyttor'!Q98 -> 4,000,000 | O12: 3,800,000 | P12: 5% | Q12: =Tabell10[[#This Row],[Summa]]/SUM(L7:L15) -> 3% | R12: =Tabell10[[#This Row],[Summa]]/6 -> 666,667
B13: 2 | C13: 1. Finansiell | D13: ='Beräkningar nyttor'!A14 -> Minskade kostnader för drift och förvaltning av HSA | E13: Inera | F13: ='Beräkningar nyttor'!I15 -> 0 | G13: ='Beräkningar nyttor'!J15 -> 0 | H13: ='Beräkningar nyttor'!K15 -> 765,672 | I13: ='Beräkningar nyttor'!L15 -> 765,672 | J13: ='Beräkningar nyttor'!M15 -> 765,672 | K13: ='Beräkningar nyttor'!N15 -> 765,672 | L13: 3,062,688 | M13: ='Beräkningar nyttor'!P15 -> 2,102,688 | N13: ='Beräkningar nyttor'!Q15 -> 8,107,488 | O13: 3,879,648 | P13: 39% | Q13: =Tabell10[[#This Row],[Summa]]/SUM(L7:L15) -> 2% | R13: =Tabell10[[#This Row],[Summa]]/6 -> 510,448 | S13: =SUM(Q7:Q14) -> 100%
B14: 1 | C14: 1. Finansiell | D14: ='Beräkningar nyttor'!A4 -> Minskade kostnader för anpassningar för att hantera felaktig information | E14: Inera | F14: ='Beräkningar nyttor'!I5 -> 0 | G14: ='Beräkningar nyttor'!J5 -> 0 | H14: ='Beräkningar nyttor'!K5 -> 227,803 | I14: ='Beräkningar nyttor'!L5 -> 227,803 | J14: ='Beräkningar nyttor'!M5 -> 227,803 | K14: ='Beräkningar nyttor'!N5 -> 227,803 | L14: 911,213 | M14: ='Beräkningar nyttor'!P5 -> 911,213 | N14: ='Beräkningar nyttor'!Q5 -> 2,184,000 | O14: 1,165,771 | P14: 28% | Q14: =Tabell10[[#This Row],[Summa]]/SUM(L7:L15) -> 1% | R14: =Tabell10[[#This Row],[Summa]]/6 -> 151,869 | S14: =SUM(Q15:Q20) -> 100%
B15: 12 | C15: 1. Finansiell | D15: ='Beräkningar nyttor'!A147 -> Minskade skadestånd eller viten enligt GDPR | E15: Regioner | F15: ='Beräkningar nyttor'!I148 -> 0 | G15: ='Beräkningar nyttor'!J148 -> 0 | H15: ='Beräkningar nyttor'!K148 -> 0 | I15: ='Beräkningar nyttor'!L148 -> 200,000 | J15: ='Beräkningar nyttor'!M148 -> 0 | K15: ='Beräkningar nyttor'!N148 -> 0 | L15: 200,000 | M15: ='Beräkningar nyttor'!P148 -> 0 | N15: ='Beräkningar nyttor'!Q148 -> 10,000,000 | O15: 2,120,000 | P15: 1000% | Q15: =Tabell10[[#This Row],[Summa]]/SUM(L7:L15) -> 0% | R15: =Tabell10[[#This Row],[Summa]]/6 -> 33,333
B16: 4 | C16: 2. Omfördelningsnytta | D16: ='Beräkningar nyttor'!A51 -> Minskade kostnader genom gemensam terminologi - Regioner | E16: Regioner | F16: ='Beräkningar nyttor'!I52 -> 0 | G16: ='Beräkningar nyttor'!J52 -> 0 | H16: ='Beräkningar nyttor'!K52 -> 0 | I16: ='Beräkningar nyttor'!L52 -> 10,656,000 | J16: ='Beräkningar nyttor'!M52 -> 10,656,000 | K16: ='Beräkningar nyttor'!N52 -> 10,656,000 | L16: 31,968,000 | M16: ='Beräkningar nyttor'!P52 -> 31,968,000 | N16: ='Beräkningar nyttor'!Q52 -> 31,968,000 | O16: 31,968,000 | P16: 0% | Q16: =Tabell10[[#This Row],[Summa]]/SUM(L16:L20) -> 30% | R16: =Tabell10[[#This Row],[Summa]]/6 -> 5,328,000
B17: 10 | C17: 2. Omfördelningsnytta | D17: ='Beräkningar nyttor'!A120 -> Minskad tid på administration för producenter av information (genom bättre admingränssnitt) | E17: Regioner | F17: ='Beräkningar nyttor'!I121 -> 0 | G17: ='Beräkningar nyttor'!J121 -> 0 | H17: ='Beräkningar nyttor'!K121 -> 15,816,346 | I17: ='Beräkningar nyttor'!L121 -> 15,816,346 | J17: ='Beräkningar nyttor'!M121 -> 15,816,346 | K17: ='Beräkningar nyttor'!N121 -> 15,816,346 | L17: 63,265,384 | M17: ='Beräkningar nyttor'!P121 -> 21,018,400 | N17: ='Beräkningar nyttor'!Q121 -> 63,265,384 | O17: 54,815,987 | P17: 13% | Q17: =Tabell10[[#This Row],[Summa]]/SUM(L16:L20) -> 59% | R17: =Tabell10[[#This Row],[Summa]]/6 -> 10,544,231
B18: 14 | C18: 2. Omfördelningsnytta | D18: ='Beräkningar nyttor'!A174 -> Minskad tid på administration för producenter i RGS Katalog | E18: Regioner | F18: ='Beräkningar nyttor'!I175 -> 0 | G18: ='Beräkningar nyttor'!J175 -> 0 | H18: ='Beräkningar nyttor'!K175 -> 2,629,536 | I18: ='Beräkningar nyttor'!L175 -> 2,629,536 | J18: ='Beräkningar nyttor'!M175 -> 2,629,536 | K18: ='Beräkningar nyttor'!N175 -> 2,629,536 | L18: 10,518,144 | M18: ='Beräkningar nyttor'!P175 -> 8,414,515 | N18: ='Beräkningar nyttor'!Q175 -> 12,621,773 | O18: 10,518,144 | P18: 8% | Q18: =Tabell10[[#This Row],[Summa]]/SUM(L16:L20) -> 10% | R18: =Tabell10[[#This Row],[Summa]]/6 -> 1,753,024
B19: 3 | C19: 2. Omfördelningsnytta | D19: ='Beräkningar nyttor'!A41 -> Minskade kostnader genom gemensam terminologi - Inera | E19: Inera | F19: ='Beräkningar nyttor'!I42 -> 0 | G19: ='Beräkningar nyttor'!J42 -> 0 | H19: ='Beräkningar nyttor'!K42 -> 0 | I19: ='Beräkningar nyttor'!L42 -> 149,100 | J19: ='Beräkningar nyttor'!M42 -> 149,100 | K19: ='Beräkningar nyttor'!N42 -> 149,100 | L19: 447,300 | M19: ='Beräkningar nyttor'!P42 -> 447,300 | N19: ='Beräkningar nyttor'!Q42 -> 447,300 | O19: 447,300 | P19: 0% | Q19: =Tabell10[[#This Row],[Summa]]/SUM(L16:L20) -> 0% | R19: =Tabell10[[#This Row],[Summa]]/6 -> 74,550
B20: 13 | C20: 2. Omfördelningsnytta | D20: ='Beräkningar nyttor'!A159 -> Minskad tid på administration för producenter i Hitta och jämför vård | E20: Regioner | F20: ='Beräkningar nyttor'!I160 -> 0 | G20: ='Beräkningar nyttor'!J160 -> 0 | H20: ='Beräkningar nyttor'!K160 -> 242,424 | I20: ='Beräkningar nyttor'!L160 -> 242,424 | J20: ='Beräkningar nyttor'!M160 -> 242,424 | K20: ='Beräkningar nyttor'!N160 -> 242,424 | L20: 969,696 | M20: ='Beräkningar nyttor'!P160 -> 327,600 | N20: ='Beräkningar nyttor'!Q160 -> 969,696 | O20: 841,277 | P20: 13% | Q20: =Tabell10[[#This Row],[Summa]]/SUM(L16:L20) -> 1% | R20: =Tabell10[[#This Row],[Summa]]/6 -> 161,616
B21: 15 | L21: 0
B22: 16 | L22: 0
B23: 17 | L23: 0
B24: 18 | L24: 0
B25: 19 | L25: 0
B26: 20 | L26: 0
B27: 21 | L27: 0
B28: Summa | F28: =SUBTOTAL(109,Tabell10[år 1]) -> 0 | G28: =SUBTOTAL(109,Tabell10[år 2]) -> 0 | H28: =SUBTOTAL(109,Tabell10[år 3]) -> 28,257,781 | I28: =SUBTOTAL(109,Tabell10[år 4]) -> 73,762,881 | J28: =SUBTOTAL(109,Tabell10[år 5]) -> 76,687,881 | K28: =SUBTOTAL(109,Tabell10[år 6]) -> 76,687,881 | L28: =SUBTOTAL(109,Tabell10[Summa]) -> 255,396,425 | M28: =SUM(Tabell10[Min]) -> 131,118,717 | N28: =SUM(Tabell10[Max]) -> 415,492,641 | O28: =SUBTOTAL(109,Tabell10[Vägt medel]) -> 262,560,127

Sheet Kostnader
B1: Kostnader
B2: =IF(Grunddata!B6=0,"",Grunddata!B6) -> Katalog 2025
C4: Ange kostnadskategori - genom att välja i rullisten. | D4: Ange ett kortfattat men beskrivande namn på kostnaden, exempelvis "personalkostnad, "konsultkostnad," etc. | E4: Angeför vilken intressent kostnaden uppstår. Ange en ny rad per intressent om kostnaden uppstår hos fler intressenter. | F4: Periodisera kostnaden under kalkylperioden per år. | M4: Om möjligt estimera ett min- och ett max värde.
F5: =Startår -> 2021 | G5: =F5+1 -> 2022 | H5: =G5+1 -> 2023 | I5: 2024 | J5: 2025 | K5: 2026
B6: ID | C6: Kostnadskategori | D6: Kostnadens namn | E6: Intressent | F6: år 1 | G6: år 2 | H6: år 3 | I6: år 4 | J6: år 5 | K6: år 6 | L6: Summa | M6: Min | N6: Max | O6: Vägt medel | P6: Osäkerhet
B7: 1 | C7: 4. Projekt | D7: Katalog 2025 | E7: Inera | F7: 15,000,000 | G7: 30,000,000 | H7: 30,000,000 | I7: 10,600,000 | L7: =SUM(F7:K7) -> 85,600,000 | M7: 85,600,000 | N7: 85,600,000 | O7: =IF(OR(ISBLANK(N7),ISBLANK(M7),ISBLANK(L7)),"",(N7+M7+3*L7)/5) -> 85,600,000 | P7: =IF(OR(ISBLANK(L7),L7=0),"",(N7-M7)/5/L7) -> 0%
B8: 2 | C8: 1. Verksamhetsförändring | L8: 0 | M8: =0.8*Tabell109[[#This Row],[Summa]] -> 0 | N8: =1.2*Tabell109[[#This Row],[Min]] -> 0 | O8: 0
B9: 3 | C9: 2. Löpande verksamhetskostnader | L9: 0 | M9: =0.8*Tabell109[[#This Row],[Summa]] -> 0 | N9: =1.2*Tabell109[[#This Row],[Min]] -> 0 | O9: 0
B10: 4 | C10: 3. Investeringar | L10: 0 | M10: =0.8*Tabell109[[#This Row],[Summa]] -> 0 | N10: =1.2*Tabell109[[#This Row],[Min]] -> 0 | O10: 0
B11: 5 | L11: 0 | M11: =0.8*Tabell109[[#This Row],[Summa]] -> 0 | N11: =1.2*Tabell109[[#This Row],[Min]] -> 0 | O11: 0
B12: 6 | L12: 0 | M12: =0.8*Tabell109[[#This Row],[Summa]] -> 0 | N12: =1.2*Tabell109[[#This Row],[Min]] -> 0 | O12: 0
B13: 7 | L13: 0 | M13: =0.8*Tabell109[[#This Row],[Summa]] -> 0 | N13: =1.2*Tabell109[[#This Row],[Min]] -> 0 | O13: 0
B14: 8 | L14: 0 | M14: =0.8*Tabell109[[#This Row],[Summa]] -> 0 | N14: =1.2*Tabell109[[#This Row],[Min]] -> 0 | O14: 0
B15: 9 | L15: 0 | M15: =0.8*Tabell109[[#This Row],[Summa]] -> 0 | N15: =1.2*Tabell109[[#This Row],[Min]] -> 0 | O15: 0
B16: 10 | L16: 0 | M16: =0.8*Tabell109[[#This Row],[Summa]] -> 0 | N16: =1.2*Tabell109[[#This Row],[Min]] -> 0 | O16: 0
B17: 11 | L17: 0 | M17: =0.8*Tabell109[[#This Row],[Summa]] -> 0 | N17: =1.2*Tabell109[[#This Row],[Min]] -> 0 | O17: 0
B18: 12 | L18: 0 | M18: =0.8*Tabell109[[#This Row],[Summa]] -> 0 | N18: =1.2*Tabell109[[#This Row],[Min]] -> 0 | O18: 0
B19: 13 | L19: 0 | M19: =0.8*Tabell109[[#This Row],[Summa]] -> 0 | N19: =1.2*Tabell109[[#This Row],[Min]] -> 0 | O19: 0
B20: 14 | L20: 0 | M20: =0.8*Tabell109[[#This Row],[Summa]] -> 0 | N20: =1.2*Tabell109[[#This Row],[Min]] -> 0 | O20: 0
B21: 15 | L21: 0 | M21: =0.8*Tabell109[[#This Row],[Summa]] -> 0 | N21: =1.2*Tabell109[[#This Row],[Min]] -> 0 | O21: 0
B22: 16 | L22: 0 | M22: =0.8*Tabell109[[#This Row],[Summa]] -> 0 | N22: =1.2*Tabell109[[#This Row],[Min]] -> 0 | O22: 0
B23: 17 | L23: 0 | M23: =0.8*Tabell109[[#This Row],[Summa]] -> 0 | N23: =1.2*Tabell109[[#This Row],[Min]] -> 0 | O23: 0
B24: 18 | L24: 0 | M24: =0.8*Tabell109[[#This Row],[Summa]] -> 0 | N24: =1.2*Tabell109[[#This Row],[Min]] -> 0 | O24: 0
B25: 19 | L25: 0 | M25: =0.8*Tabell109[[#This Row],[Summa]] -> 0 | N25: =1.2*Tabell109[[#This Row],[Min]] -> 0 | O25: 0
B26: 20 | L26: 0 | M26: =0.8*Tabell109[[#This Row],[Summa]] -> 0 | N26: =1.2*Tabell109[[#This Row],[Min]] -> 0 | O26: 0
B27: 21 | L27: 0 | M27: =0.8*Tabell109[[#This Row],[Summa]] -> 0 | N27: =1.2*Tabell109[[#This Row],[Min]] -> 0 | O27: 0
B28: Summa | F28: =SUBTOTAL(109,Tabell109[år 1]) -> 15,000,000 | G28: =SUBTOTAL(109,Tabell109[år 2]) -> 30,000,000 | H28: =SUBTOTAL(109,Tabell109[år 3]) -> 30,000,000 | I28: =SUBTOTAL(109,Tabell109[år 4]) -> 10,600,000 | J28: =SUBTOTAL(109,Tabell109[år 5]) -> 0 | K28: =SUBTOTAL(109,Tabell109[år 6]) -> 0 | L28: =SUBTOTAL(109,Tabell109[Summa]) -> 85,600,000 | M28: =SUBTOTAL(109,Tabell109[Min]) -> 85,600,000 | N28: =SUBTOTAL(109,Tabell109[Max]) -> 85,600,000 | O28: =SUBTOTAL(109,Tabell109[Vägt medel]) -> 85,600,000

Sheet Nyttorealiseringskalkyl
D1: Nyttorealiseringskalkyl
D2: =IF(Grunddata!B6=0,"",Grunddata!B6) -> Katalog 2025
D3: Tabellerna och diagrammen är formaterade för att passa i powerpoint-presentationer. Markera och kopiera tabellen eller diagrammet och välj att "klistra in som bild" för ett snyggt resultat.
D6: Total nytta
D9: Nyttorealiseringskalkyl - total nytta | I9: Nyttorealiseringskalkyl - total nytta
D10: För perioden | E10: =Startår & " - " & Startår+5 -> 2021 - 2026
J11: =Startår -> 2021 | K11: =J11+1 -> 2022 | L11: =K11+1 -> 2023 | M11: 2024 | N11: =M11+1 -> 2025 | O11: =N11+1 -> 2026 | P11: Totalt
D12: Total kostnad | E12: =TotalKostnad -> -85,600,000 kr | I12: Total nytta | J12: =J13+J14 -> 0 | K12: =K13+K14 -> 0 | L12: 28,257,781 | M12: 73,762,881 | N12: 76,687,881 | O12: 76,687,881 | P12: 255,396,425
D13: Finansiell nytta | E13: =P13 -> 148,227,901 kr | I13: Finansiella nyttor | J13: =GETPIVOTDATA("Summa av år 1",'-Admin-'!$C$34,"Nyttokategori","1. Finansiell") -> 0 | K13: =GETPIVOTDATA("Summa av år 2",'-Admin-'!$C$34,"Nyttokategori","1. Finansiell") -> 0 | L13: =GETPIVOTDATA("Summa av år 3",'-Admin-'!$C$34,"Nyttokategori","1. Finansiell") -> 9,569,475 | M13: =GETPIVOTDATA("Summa av år 4",'-Admin-'!$C$34,"Nyttokategori","1. Finansiell") -> 44,269,475 | N13: =GETPIVOTDATA("Summa av år 5",'-Admin-'!$C$34,"Nyttokategori","1. Finansiell") -> 47,194,475 | O13: =GETPIVOTDATA("Summa av år 6",'-Admin-'!$C$34,"Nyttokategori","1. Finansiell") -> 47,194,475 | P13: =SUM(J13:O13) -> 148,227,901
D14: Omfördelningsnytta | E14: =P14 -> 107,168,524 kr | I14: Omfördelningsnyttor | J14: =GETPIVOTDATA("Summa av år 1",'-Admin-'!$C$34,"Nyttokategori","2. Omfördelningsnytta") -> 0 | K14: =GETPIVOTDATA("Summa av år 2",'-Admin-'!$C$34,"Nyttokategori","2. Omfördelningsnytta") -> 0 | L14: =GETPIVOTDATA("Summa av år 3",'-Admin-'!$C$34,"Nyttokategori","2. Omfördelningsnytta") -> 18,688,306 | M14: =GETPIVOTDATA("Summa av år 4",'-Admin-'!$C$34,"Nyttokategori","2. Omfördelningsnytta") -> 29,493,406 | N14: =GETPIVOTDATA("Summa av år 5",'-Admin-'!$C$34,"Nyttokategori","2. Omfördelningsnytta") -> 29,493,406 | O14: =GETPIVOTDATA("Summa av år 6",'-Admin-'!$C$34,"Nyttokategori","2. Omfördelningsnytta") -> 29,493,406 | P14: =SUM(J14:O14) -> 107,168,524
D15: Total nytta | E15: =TotalNytta -> 255,396,425 kr
D16: Total nettonytta | E16: =NettoNytta -> 169,796,425 kr | I16: Total kostnad | J16: =SUM(J17:J20) -> -15,000,000 | K16: =SUM(K17:K20) -> -30,000,000 | L16: -30,000,000 | M16: -10,600,000 | N16: 0 | O16: 0 | P16: -85,600,000
I17: Verksamhets-förändring | J17: =-GETPIVOTDATA("Summa av År 1",'-Admin-'!$C$41,"Kostnadskategori","1. Verksamhetsförändring") -> 0 | K17: =-GETPIVOTDATA("Summa av År 2",'-Admin-'!$C$41,"Kostnadskategori","1. Verksamhetsförändring") -> 0 | L17: =-GETPIVOTDATA("Summa av År 3",'-Admin-'!$C$41,"Kostnadskategori","1. Verksamhetsförändring") -> 0 | M17: =-GETPIVOTDATA("Summa av År 4",'-Admin-'!$C$41,"Kostnadskategori","1. Verksamhetsförändring") -> 0 | N17: =-GETPIVOTDATA("Summa av År 5",'-Admin-'!$C$41,"Kostnadskategori","1. Verksamhetsförändring") -> 0 | O17: =-GETPIVOTDATA("Summa av År 6",'-Admin-'!$C$41,"Kostnadskategori","1. Verksamhetsförändring") -> 0 | P17: =SUM(J17:O17) -> 0
D18: Return on investment (ROI) | E18: =IF(-TotalKostnad=0,0,TotalNettoNytta/-TotalKostnad) -> 1.98 kr | I18: Löpande verksamhets-kostnader | J18: =-GETPIVOTDATA("Summa av År 1",'-Admin-'!$C$41,"Kostnadskategori","2. Löpande verksamhetskostnader") -> 0 | K18: =-GETPIVOTDATA("Summa av År 2",'-Admin-'!$C$41,"Kostnadskategori","2. Löpande verksamhetskostnader") -> 0 | L18: =-GETPIVOTDATA("Summa av År 3",'-Admin-'!$C$41,"Kostnadskategori","2. Löpande verksamhetskostnader") -> 0 | M18: =-GETPIVOTDATA("Summa av År 4",'-Admin-'!$C$41,"Kostnadskategori","2. Löpande verksamhetskostnader") -> 0 | N18: =-GETPIVOTDATA("Summa av År 5",'-Admin-'!$C$41,"Kostnadskategori","2. Löpande verksamhetskostnader") -> 0 | O18: =-GETPIVOTDATA("Summa av År 6",'-Admin-'!$C$41,"Kostnadskategori","2. Löpande verksamhetskostnader") -> 0 | P18: =SUM(J18:O18) -> 0
D19: Payback-år | E19: =IF('-Admin-'!D93=0,"Ingen payback",'-Admin-'!D93) -> 2024 | I19: Investeringar | J19: =-GETPIVOTDATA("Summa av År 1",'-Admin-'!$C$41,"Kostnadskategori","3. Investeringar") -> 0 | K19: =-GETPIVOTDATA("Summa av År 2",'-Admin-'!$C$41,"Kostnadskategori","3. Investeringar") -> 0 | L19: =-GETPIVOTDATA("Summa av År 3",'-Admin-'!$C$41,"Kostnadskategori","3. Investeringar") -> 0 | M19: =-GETPIVOTDATA("Summa av År 4",'-Admin-'!$C$41,"Kostnadskategori","3. Investeringar") -> 0 | N19: =-GETPIVOTDATA("Summa av År 5",'-Admin-'!$C$41,"Kostnadskategori","3. Investeringar") -> 0 | O19: =-GETPIVOTDATA("Summa av År 6",'-Admin-'!$C$41,"Kostnadskategori","3. Investeringar") -> 0 | P19: =SUM(J19:O19) -> 0
I20: Projekt | J20: =-GETPIVOTDATA("Summa av År 1",'-Admin-'!$C$41,"Kostnadskategori","4. Projekt") -> -15,000,000 | K20: =-GETPIVOTDATA("Summa av År 2",'-Admin-'!$C$41,"Kostnadskategori","4. Projekt") -> -30,000,000 | L20: =-GETPIVOTDATA("Summa av År 3",'-Admin-'!$C$41,"Kostnadskategori","4. Projekt") -> -30,000,000 | M20: =-GETPIVOTDATA("Summa av År 4",'-Admin-'!$C$41,"Kostnadskategori","4. Projekt") -> -10,600,000 | N20: =-GETPIVOTDATA("Summa av År 5",'-Admin-'!$C$41,"Kostnadskategori","4. Projekt") -> 0 | O20: =-GETPIVOTDATA("Summa av År 6",'-Admin-'!$C$41,"Kostnadskategori","4. Projekt") -> 0 | P20: -85,600,000
D21: Return on investment (ROI) är intjänad värderad nytta per investerad krona. Payback-år är året då de värderade nyttorna förväntas överstiga kostnaderna.
I22: Finansiell nettonytta | J22: =J13+J16 -> -15,000,000 | K22: =K13+K16 -> -30,000,000 | L22: -20,430,525 | M22: 33,669,475 | N22: 47,194,475 | O22: 47,194,475 | P22: =P13+P16 -> 62,627,901
I23: Ackumulerad finansiell nettonytta | J23: =J14+J16 -> -15,000,000 | K23: =IF(K22=0,"",J23+K22) -> -45,000,000 | L23: =IF(L22=0,"",K23+L22) -> -65,430,525 | M23: -31,761,049 | N23: 15,433,426 | O23: 62,627,901 | P23: =O23 -> 62,627,901
I24: Omfördelnings-nettonytta | J24: =J14+J16 -> -15,000,000 | K24: =K14+K16 -> -30,000,000 | L24: -11,311,694 | M24: 18,893,406 | N24: 29,493,406 | O24: 29,493,406 | P24: =P14+P16 -> 21,568,524
I25: Ackumulerad omfördelnings-nettonytta | J25: =J26 -> -15,000,000 | K25: =IF(K24=0,"",J25+K24) -> -45,000,000 | L25: =IF(L24=0,"",K25+L24) -> -56,311,694 | M25: -37,418,288 | N25: -7,924,882 | O25: 21,568,524 | P25: =O25 -> 21,568,524
I26: Nettonytta | J26: =J12+J16 -> -15,000,000 | K26: -30,000,000 | L26: -1,742,219 | M26: 63,162,881 | N26: 76,687,881 | O26: 76,687,881 | P26: 169,796,425
I27: Ackumulerad nettonytta | J27: =J26 -> -15,000,000 | K27: =IF(K26=0,"",J27+K26) -> -45,000,000 | L27: =IF(L26=0,"",K27+L26) -> -46,742,219 | M27: =IF(M26=0,"",L27+M26) -> 16,420,663 | N27: =IF(N26=0,"",M27+N26) -> 93,108,544 | O27: =IF(O26=0,"",N27+O26) -> 169,796,425 | P27: =O27 -> 169,796,425
D68: Finansiell nytta
D71: Nyttorealiseringskalkyl - finansiel nytta | I71: Nyttorealiseringskalkyl - finansiell nytta
D72: För perioden | E72: =Startår & " - " & Startår+5 -> 2021 - 2026
J73: =Startår -> 2021 | K73: =J73+1 -> 2022 | L73: =K73+1 -> 2023 | M73: =L73+1 -> 2024 | N73: =M73+1 -> 2025 | O73: =N73+1 -> 2026 | P73: Totalt
D74: Total kostnad | E74: =TotalKostnad -> -85,600,000 kr | I74: Finansiella nyttor | J74: =GETPIVOTDATA("Summa av år 1",'-Admin-'!$C$34,"Nyttokategori","1. Finansiell") -> 0 | K74: =GETPIVOTDATA("Summa av år 2",'-Admin-'!$C$34,"Nyttokategori","1. Finansiell") -> 0 | L74: =GETPIVOTDATA("Summa av år 3",'-Admin-'!$C$34,"Nyttokategori","1. Finansiell") -> 9,569,475 | M74: =GETPIVOTDATA("Summa av år 4",'-Admin-'!$C$34,"Nyttokategori","1. Finansiell") -> 44,269,475 | N74: =GETPIVOTDATA("Summa av år 5",'-Admin-'!$C$34,"Nyttokategori","1. Finansiell") -> 47,194,475 | O74: =GETPIVOTDATA("Summa av år 6",'-Admin-'!$C$34,"Nyttokategori","1. Finansiell") -> 47,194,475 | P74: =SUM(J74:O74) -> 148,227,901
D75: Total finansiell nytta | E75: =P74 -> 148,227,901 kr
D76: Finansiell nettonytta | E76: =P82 -> 62,627,901 kr | I76: Total kostnad | J76: =SUM(J77:J80) -> -15,000,000 | K76: =SUM(K77:K80) -> -30,000,000 | L76: -30,000,000 | M76: -10,600,000 | N76: 0 | O76: 0 | P76: -85,600,000
I77: Verksamhets-förändring | J77: =-GETPIVOTDATA("Summa av År 1",'-Admin-'!$C$41,"Kostnadskategori","1. Verksamhetsförändring") -> 0 | K77: =-GETPIVOTDATA("Summa av År 2",'-Admin-'!$C$41,"Kostnadskategori","1. Verksamhetsförändring") -> 0 | L77: =-GETPIVOTDATA("Summa av År 3",'-Admin-'!$C$41,"Kostnadskategori","1. Verksamhetsförändring") -> 0 | M77: =-GETPIVOTDATA("Summa av År 4",'-Admin-'!$C$41,"Kostnadskategori","1. Verksamhetsförändring") -> 0 | N77: =-GETPIVOTDATA("Summa av År 5",'-Admin-'!$C$41,"Kostnadskategori","1. Verksamhetsförändring") -> 0 | O77: =-GETPIVOTDATA("Summa av År 6",'-Admin-'!$C$41,"Kostnadskategori","1. Verksamhetsförändring") -> 0 | P77: =SUM(J77:O77) -> 0
D78: Return on investment (ROI) | E78: =IF(-P76=0,0,P82/-P76) -> 0.73 kr | I78: Löpande verksamhets-kostnader | J78: =-GETPIVOTDATA("Summa av År 1",'-Admin-'!$C$41,"Kostnadskategori","2. Löpande verksamhetskostnader") -> 0 | K78: =-GETPIVOTDATA("Summa av År 2",'-Admin-'!$C$41,"Kostnadskategori","2. Löpande verksamhetskostnader") -> 0 | L78: =-GETPIVOTDATA("Summa av År 3",'-Admin-'!$C$41,"Kostnadskategori","2. Löpande verksamhetskostnader") -> 0 | M78: =-GETPIVOTDATA("Summa av År 4",'-Admin-'!$C$41,"Kostnadskategori","2. Löpande verksamhetskostnader") -> 0 | N78: =-GETPIVOTDATA("Summa av År 5",'-Admin-'!$C$41,"Kostnadskategori","2. Löpande verksamhetskostnader") -> 0 | O78: =-GETPIVOTDATA("Summa av År 6",'-Admin-'!$C$41,"Kostnadskategori","2. Löpande verksamhetskostnader") -> 0 | P78: =SUM(J78:O78) -> 0
D79: Payback-år | E79: ='-Admin-'!D102 -> 2025 | I79: Investeringar | J79: =-GETPIVOTDATA("Summa av År 1",'-Admin-'!$C$41,"Kostnadskategori","3. Investeringar") -> 0 | K79: =-GETPIVOTDATA("Summa av År 2",'-Admin-'!$C$41,"Kostnadskategori","3. Investeringar") -> 0 | L79: =-GETPIVOTDATA("Summa av År 3",'-Admin-'!$C$41,"Kostnadskategori","3. Investeringar") -> 0 | M79: =-GETPIVOTDATA("Summa av År 4",'-Admin-'!$C$41,"Kostnadskategori","3. Investeringar") -> 0 | N79: =-GETPIVOTDATA("Summa av År 5",'-Admin-'!$C$41,"Kostnadskategori","3. Investeringar") -> 0 | O79: =-GETPIVOTDATA("Summa av År 6",'-Admin-'!$C$41,"Kostnadskategori","3. Investeringar") -> 0 | P79: =SUM(J79:O79) -> 0
I80: Projekt | J80: =-GETPIVOTDATA("Summa av År 1",'-Admin-'!$C$41,"Kostnadskategori","4. Projekt") -> -15,000,000 | K80: =-GETPIVOTDATA("Summa av År 2",'-Admin-'!$C$41,"Kostnadskategori","4. Projekt") -> -30,000,000 | L80: =-GETPIVOTDATA("Summa av År 3",'-Admin-'!$C$41,"Kostnadskategori","4. Projekt") -> -30,000,000 | M80: =-GETPIVOTDATA("Summa av År 4",'-Admin-'!$C$41,"Kostnadskategori","4. Projekt") -> -10,600,000 | N80: =-GETPIVOTDATA("Summa av År 5",'-Admin-'!$C$41,"Kostnadskategori","4. Projekt") -> 0 | O80: =-GETPIVOTDATA("Summa av År 6",'-Admin-'!$C$41,"Kostnadskategori","4. Projekt") -> 0 | P80: -85,600,000
I82: Finansiell nettonytta | J82: =J74+J76 -> -15,000,000 | K82: -30,000,000 | L82: -20,430,525 | M82: =M74+M76 -> 33,669,475 | N82: 47,194,475 | O82: 47,194,475 | P82: =P74+P76 -> 62,627,901
I83: Ackumulerad finansiell nettonytta | J83: =J82 -> -15,000,000 | K83: =J83+K82 -> -45,000,000 | L83: =K83+L82 -> -65,430,525 | M83: -31,761,049 | N83: 15,433,426 | O83: 62,627,901 | P83: =O83 -> 62,627,901
D119: Omfördelningsnytta
D122: Nyttorealiseringskalkyl | I122: Nyttorealiseringskalkyl per år
D123: För perioden | E123: =Startår & " - " & Startår+5 -> 2021 - 2026
J124: =Startår -> 2021 | K124: =J124+1 -> 2022 | L124: =K124+1 -> 2023 | M124: =L124+1 -> 2024 | N124: =M124+1 -> 2025 | O124: =N124+1 -> 2026 | P124: Totalt
D125: Total kostnad | E125: =TotalKostnad -> -85,600,000 | I125: Omfördelningsnyttor | J125: =GETPIVOTDATA("Summa av år 1",'-Admin-'!$C$34,"Nyttokategori","2. Omfördelningsnytta") -> 0 | K125: =GETPIVOTDATA("Summa av år 2",'-Admin-'!$C$34,"Nyttokategori","2. Omfördelningsnytta") -> 0 | L125: =GETPIVOTDATA("Summa av år 3",'-Admin-'!$C$34,"Nyttokategori","2. Omfördelningsnytta") -> 18,688,306 | M125: =GETPIVOTDATA("Summa av år 4",'-Admin-'!$C$34,"Nyttokategori","2. Omfördelningsnytta") -> 29,493,406 | N125: =GETPIVOTDATA("Summa av år 5",'-Admin-'!$C$34,"Nyttokategori","2. Omfördelningsnytta") -> 29,493,406 | O125: =GETPIVOTDATA("Summa av år 6",'-Admin-'!$C$34,"Nyttokategori","2. Omfördelningsnytta") -> 29,493,406 | P125: =SUM(J125:O125) -> 107,168,524
D126: Total omfördelningsnytta | E126: =P125 -> 107,168,524
D127: Omfördelnings-nettonytta | E127: =P133 -> 21,568,524 | I127: Total kostnad | J127: =SUM(J128:J131) -> -15,000,000 | K127: =SUM(K128:K131) -> -30,000,000 | L127: -30,000,000 | M127: -10,600,000 | N127: 0 | O127: 0 | P127: -85,600,000
I128: Verksamhets-förändring | J128: =-GETPIVOTDATA("Summa av År 1",'-Admin-'!$C$41,"Kostnadskategori","1. Verksamhetsförändring") -> 0 | K128: =-GETPIVOTDATA("Summa av År 2",'-Admin-'!$C$41,"Kostnadskategori","1. Verksamhetsförändring") -> 0 | L128: =-GETPIVOTDATA("Summa av År 3",'-Admin-'!$C$41,"Kostnadskategori","1. Verksamhetsförändring") -> 0 | M128: =-GETPIVOTDATA("Summa av År 4",'-Admin-'!$C$41,"Kostnadskategori","1. Verksamhetsförändring") -> 0 | N128: =-GETPIVOTDATA("Summa av År 5",'-Admin-'!$C$41,"Kostnadskategori","1. Verksamhetsförändring") -> 0 | O128: =-GETPIVOTDATA("Summa av År 6",'-Admin-'!$C$41,"Kostnadskategori","1. Verksamhetsförändring") -> 0 | P128: =SUM(J128:O128) -> 0
D129: Return on investment (ROI) | E129: =IF(-P127=0,0,P133/-P127) -> 0.25 kr | I129: Löpande verksamhets-kostnader | J129: =-GETPIVOTDATA("Summa av År 1",'-Admin-'!$C$41,"Kostnadskategori","2. Löpande verksamhetskostnader") -> 0 | K129: =-GETPIVOTDATA("Summa av År 2",'-Admin-'!$C$41,"Kostnadskategori","2. Löpande verksamhetskostnader") -> 0 | L129: =-GETPIVOTDATA("Summa av År 3",'-Admin-'!$C$41,"Kostnadskategori","2. Löpande verksamhetskostnader") -> 0 | M129: =-GETPIVOTDATA("Summa av År 4",'-Admin-'!$C$41,"Kostnadskategori","2. Löpande verksamhetskostnader") -> 0 | N129: =-GETPIVOTDATA("Summa av År 5",'-Admin-'!$C$41,"Kostnadskategori","2. Löpande verksamhetskostnader") -> 0 | O129: =-GETPIVOTDATA("Summa av År 6",'-Admin-'!$C$41,"Kostnadskategori","2. Löpande verksamhetskostnader") -> 0 | P129: =SUM(J129:O129) -> 0
D130: Payback-år | E130: =IF('-Admin-'!D109=0,"Ingen payback",'-Admin-'!D109) -> 2026 | I130: Investeringar | J130: =-GETPIVOTDATA("Summa av År 1",'-Admin-'!$C$41,"Kostnadskategori","3. Investeringar") -> 0 | K130: =-GETPIVOTDATA("Summa av År 2",'-Admin-'!$C$41,"Kostnadskategori","3. Investeringar") -> 0 | L130: =-GETPIVOTDATA("Summa av År 3",'-Admin-'!$C$41,"Kostnadskategori","3. Investeringar") -> 0 | M130: =-GETPIVOTDATA("Summa av År 4",'-Admin-'!$C$41,"Kostnadskategori","3. Investeringar") -> 0 | N130: =-GETPIVOTDATA("Summa av År 5",'-Admin-'!$C$41,"Kostnadskategori","3. Investeringar") -> 0 | O130: =-GETPIVOTDATA("Summa av År 6",'-Admin-'!$C$41,"Kostnadskategori","3. Investeringar") -> 0 | P130: =SUM(J130:O130) -> 0
I131: Projekt | J131: =-GETPIVOTDATA("Summa av År 1",'-Admin-'!$C$41,"Kostnadskategori","4. Projekt") -> -15,000,000 | K131: =-GETPIVOTDATA("Summa av År 2",'-Admin-'!$C$41,"Kostnadskategori","4. Projekt") -> -30,000,000 | L131: =-GETPIVOTDATA("Summa av År 3",'-Admin-'!$C$41,"Kostnadskategori","4. Projekt") -> -30,000,000 | M131: =-GETPIVOTDATA("Summa av År 4",'-Admin-'!$C$41,"Kostnadskategori","4. Projekt") -> -10,600,000 | N131: =-GETPIVOTDATA("Summa av År 5",'-Admin-'!$C$41,"Kostnadskategori","4. Projekt") -> 0 | O131: =-GETPIVOTDATA("Summa av År 6",'-Admin-'!$C$41,"Kostnadskategori","4. Projekt") -> 0 | P131: -85,600,000
I133: Omfördelnings-nettonytta | J133: =J125+J127 -> -15,000,000 | K133: -30,000,000 | L133: -11,311,694 | M133: 18,893,406 | N133: 29,493,406 | O133: 29,493,406 | P133: 21,568,524
I134: Ackumulerad omfördelnings-nettonytta | J134: =J133 -> -15,000,000 | K134: =IF(K133=0,"",J134+K133) -> -45,000,000 | L134: =IF(L133=0,"",K134+L133) -> -56,311,694 | M134: =IF(M133=0,"",L134+M133) -> -37,418,288 | N134: =IF(N133=0,"",M134+N133) -> -7,924,882 | O134: =IF(O133=0,"",N134+O133) -> 21,568,524 | P134: =O134 -> 21,568,524

Sheet -Admin- (hidden)
C1: Admin
C2: I den här fliken finns stödfunktioner som används i kalkylen. Dessa bör normalt sett inte redigeras. Om de redigeras kommer de påverka hur mallen fungerar.
C5: Underlag för rullister i mallen
C6: Fördefinierade värden i rullisterna
C8: Intressenter
C9: Inera
C10: Region
C11: Kommun
C12: Invånare
C13: Statlig myndighet
C14: Vårdenhet
C15: Intresseorganisation
C16: Samhället
C18: Nyttokategori
C19: 1. Finansiell
C20: 2. Omfördelningsnytta
C21: 3. Kvalitativ, mätbar
C23: Kostnadskategori
C24: 1. Verksamhetsförändring
C25: 2. Löpande verksamhetskostnader
C26: 3. Investeringar
C27: 4. Projekt
C30: Underlag för nyttorealiseringskalkylen
C32: Nyttor (finansiella och omfördelningsnyttor)
C34: Radetiketter | D34: Summa av år 1 | E34: Summa av År 2 | F34: Summa av År 3 | G34: Summa av År 4 | H34: Summa av År 5 | I34: Summa av År 6
C35: 2. Omfördelningsnytta | D35: 0 | E35: 0 | F35: 18,688,306 | G35: 29,493,406 | H35: 29,493,406 | I35: 29,493,406
C36: 1. Finansiell | D36: 0 | E36: 0 | F36: 9,569,475 | G36: 44,269,475 | H36: 47,194,475 | I36: 47,194,475
C39: Kostnader
C41: Radetiketter | D41: Summa av År 1 | E41: Summa av År 2 | F41: Summa av År 3 | G41: Summa av År 4 | H41: Summa av År 5 | I41: Summa av År 6
C42: 1. Verksamhetsförändring
C43: 2. Löpande verksamhetskostnader
C44: 3. Investeringar
C45: 4. Projekt | D45: 15,000,000 | E45: 30,000,000 | F45: 30,000,000 | G45: 10,600,000
C49: Underlag för några av diagrammen - övriga diagram hämtar sin data från sammanställningen på fliken Nyttoreaslieringskalkyl
C51: Diagram "Nyttor och kostnader" | I51: Diagram "Nytta per intressent" | L51: Diagram "Kostnad per intressent"
D53: Finansiell nytta | E53: Omfördelningsnytta | F53: Total nytta | G53: Kostnad | I53: Radetiketter | J53: Summa av Summa | L53: Radetiketter | M53: Summa av Summa
C54: Nytta | D54: =Nyttorealiseringskalkyl!$P$13 -> 148,227,901 | E54: =Nyttorealiseringskalkyl!$P$14 -> 107,168,524 | F54: =D54+E54 -> 255,396,425 | I54: Regioner | J54: 106,921,224 | L54: Inera | M54: 85,600,000
C55: Kostnad | G55: =-1*TotalKostnad -> 85,600,000 | I55: Inera | J55: 67,475,201 | L55: Totalsumma | M55: 85,600,000
I56: Kommuner | J56: 81,000,000
I57: Totalsumma | J57: 255,396,425
C58: Diagram "Osäkerhetsanalys" Alla nyttor
D60: Nytta | E60: Kostnad | F60: Nettonytta
C61: Min | D61: =Tabell10[[#Totals],[Min]] -> 131,118,717 | E61: =Tabell109[[#Totals],[Min]] -> 85,600,000 | F61: =D61-E63 -> 45,518,717
C62: Troligt | D62: =Tabell10[[#Totals],[Summa]] -> 255,396,425 | E62: =Tabell109[[#Totals],[Summa]] -> 85,600,000 | F62: =D62-E62 -> 169,796,425
C63: Max | D63: =Tabell10[[#Totals],[Max]] -> 415,492,641 | E63: =Tabell109[[#Totals],[Max]] -> 85,600,000 | F63: =D63-E61 -> 329,892,641
C65: Pivottabell som underlag till diagram "osäkerhetsanalys" - finansiella nyttor och omfördelningsnyttor.
C66: Radetiketter | D66: Summa av Min | E66: Summa av Summa | F66: Summa av Max | I66: Diagram "Finansiell nytta per intressent" | L66: Diagram "Omfördelningsnytta nytta per intressent"
C67: 1. Finansiell | D67: 68,942,901 | E67: 148,227,901 | F67: 306,220,488 | I67: Nyttokategori | J67: 1. Finansiell | L67: Nyttokategori | M67: 2. Omfördelningsnytta
C68: 2. Omfördelningsnytta | D68: 62,175,815 | E68: 107,168,524 | F68: 109,272,153
C69: Totalsumma | D69: 131,118,717 | E69: 255,396,425 | F69: 415,492,641 | I69: Radetiketter | J69: Summa av Summa | L69: Radetiketter | M69: Summa av Summa
I70: Regioner | J70: 200,000 | L70: Regioner | M70: 106,721,224
I71: Inera | J71: 67,027,901 | L71: Inera | M71: 447,300
I72: Kommuner | J72: 81,000,000 | L72: Totalsumma | M72: 107,168,524
I73: Totalsumma | J73: 148,227,901
C74: Diagram "Osäkerhetsanalys" Finansiella nyttor
D76: Finansiell nytta | E76: Kostnad | F76: Nettonytta
C77: Min | D77: =GETPIVOTDATA("Summa av Min",$C$66,"Nyttokategori","1. Finansiell") -> 68,942,901 | E77: =Tabell109[[#Totals],[Min]] -> 85,600,000 | F77: =D77-E79 -> -16,657,099
C78: Troligt | D78: =GETPIVOTDATA("Summa av Summa",$C$66,"Nyttokategori","1. Finansiell") -> 148,227,901 | E78: =Tabell109[[#Totals],[Summa]] -> 85,600,000 | F78: =D78-E78 -> 62,627,901
C79: Max | D79: =GETPIVOTDATA("Summa av Max",$C$66,"Nyttokategori","1. Finansiell") -> 306,220,488 | E79: =Tabell109[[#Totals],[Max]] -> 85,600,000 | F79: =D79-E77 -> 220,620,488
C81: Diagram "Osäkerhetsanalys" Omfördelningsnyttor
D83: Omfördelningsnytta | E83: Kostnad | F83: Nettonytta
C84: Min | D84: =GETPIVOTDATA("Summa av Min",$C$66,"Nyttokategori","2. Omfördelningsnytta") -> 62,175,815 | E84: =Tabell109[[#Totals],[Min]] -> 85,600,000 | F84: =D84-E86 -> -23,424,185
C85: Troligt | D85: =GETPIVOTDATA("Summa av Summa",$C$66,"Nyttokategori","2. Omfördelningsnytta") -> 107,168,524 | E85: =Tabell109[[#Totals],[Summa]] -> 85,600,000 | F85: =D85-E85 -> 21,568,524
C86: Max | D86: =GETPIVOTDATA("Summa av Max",$C$66,"Nyttokategori","2. Omfördelningsnytta") -> 109,272,153 | E86: =Tabell109[[#Totals],[Max]] -> 85,600,000 | F86: =D86-E84 -> 23,672,153
C88: Underlag för payback-år
C89: Alla nyttor
C90: Följande rader används för beräkning av Payback-år | D90: =Startår -> 2021 | E90: =D90+1 -> 2022 | F90: =E90+1 -> 2023 | G90: 2024 | H90: 2025 | I90: 2026
C91: Ack. diskonterat kassaflöde > 0? | D91: =Nyttorealiseringskalkyl!J27>0 -> FALSE | E91: =Nyttorealiseringskalkyl!K27>0 -> FALSE | F91: =Nyttorealiseringskalkyl!L27>0 -> FALSE | G91: =Nyttorealiseringskalkyl!M27>0 -> TRUE | H91: =Nyttorealiseringskalkyl!N27>0 -> TRUE | I91: =Nyttorealiseringskalkyl!O27>0 -> TRUE
C92: Är detta ett paybackår? | D92: =IF(D91=FALSE,"x",D90) -> x | E92: =IF(E91=FALSE,"x",E90) -> x | F92: x | G92: 2,024 | H92: 2,025 | I92: 2,026
C93: Första paybackår (om något) | D93: =MIN(D92:I92) -> 2,024
C94: Paybackår? | D94: =IF('-Admin-'!D93=0,"Ingen payback",'-Admin-'!D93) -> 2024
C97: Finansiella nyttor
C98: Följande rader används för beräkning av Payback-år | D98: =Startår -> 2021 | E98: =D98+1 -> 2022 | F98: =E98+1 -> 2023 | G98: =F98+1 -> 2024 | H98: =G98+1 -> 2025 | I98: =H98+1 -> 2026
C99: Ack. diskonterat kassaflöde > 0? | D99: =Nyttorealiseringskalkyl!J83>0 -> FALSE | E99: =Nyttorealiseringskalkyl!K83>0 -> FALSE | F99: =Nyttorealiseringskalkyl!L83>0 -> FALSE | G99: =Nyttorealiseringskalkyl!M83>0 -> FALSE | H99: =Nyttorealiseringskalkyl!N83>0 -> TRUE | I99: =Nyttorealiseringskalkyl!O83>0 -> TRUE
C100: Är detta ett paybackår? | D100: =IF(D99=FALSE,"x",D98) -> x | E100: =IF(E99=FALSE,"x",E98) -> x | F100: x | G100: x | H100: 2,025 | I100: 2,026
C101: Första paybackår (om något) | D101: =MIN(D100:I100) -> 2,025
C102: Paybackår? | D102: =IF('-Admin-'!D101=0,"Ingen payback",'-Admin-'!D101) -> 2025
C105: Omfördelningsnyttor
C106: Följande rader används för beräkning av Payback-år | D106: =Startår -> 2021 | E106: =D106+1 -> 2022 | F106: =E106+1 -> 2023 | G106: =F106+1 -> 2024 | H106: =G106+1 -> 2025 | I106: =H106+1 -> 2026
C107: Ack. diskonterat kassaflöde > 0? | D107: =Nyttorealiseringskalkyl!J134>0 -> FALSE | E107: =Nyttorealiseringskalkyl!K134>0 -> FALSE | F107: =Nyttorealiseringskalkyl!L134>0 -> FALSE | G107: =Nyttorealiseringskalkyl!M134>0 -> FALSE | H107: =Nyttorealiseringskalkyl!N134>0 -> FALSE | I107: =Nyttorealiseringskalkyl!O134>0 -> TRUE
C108: Är detta ett paybackår? | D108: =IF(D107=FALSE,"x",D106) -> x | E108: =IF(E107=FALSE,"x",E106) -> x | F108: x | G108: x | H108: x | I108: 2,026
C109: Första paybackår (om något) | D109: =MIN(D108:I108) -> 2,026
C110: Paybackår? | D110: =IF('-Admin-'!D109=0,"Ingen payback",'-Admin-'!D109) -> 2026
